bitfinex/quotes_ETHUSD_20250220
["timestamp","ask_amount","ask_price","bid_price","bid_amount"]
[1740016170714,0.7636,2719.2,2718.9,3.67788]
[1740016171008,0.7636,2719.2,2718.8,0.264]
[1740016171388,0.7636,2719.2,2718.8,3.94209]
[1740016171716,0.7636,2719.2,2718.8,0.264]
[1740016172013,0.7636,2719.2,2718.8,3.94204]
[1740016172174,6.1536,2719.2,2718.9,3.67795]
[1740016176911,6.1536,2719.2,2718.7,7.6203]
[1740016177113,6.1536,2719.2,2718.7,3.94214]
[1740016178034,6.1536,2719.2,2718.9,3.67792]
[1740016178933,6.1536,2719.2,2718.7,7.62025]
[1740016179334,6.1536,2719.2,2718.8,3.67806]
[1740016179836,6.1536,2719.2,2718.9,3.67782]
[1740016179991,6.1536,2719.2,2718.7,3.94215]
[1740016180191,6.1536,2719.2,2718.7,4.48409034]
[1740016180442,6.1536,2719.2,2718.7,8.16223034]
[1740016180813,6.1536,2719.2,2718.8,3.67807]
[1740016182351,6.1536,2719.2,2718.9,3.67794]
[1740016183567,6.1536,2719.2,2718.8,3.67805]
[1740016183882,6.1536,2719.2,2718.7,4.48408034]
[1740016184063,6.1536,2719.2,2718.7,3.67814]
[1740016184272,0.8255,2719.0,2718.7,3.94214]
[1740016184577,0.8255,2719.0,2718.7,0.264]
[1740016184578,6.2155,2719.0,2718.7,0.264]
[1740016184887,6.2155,2719.0,2718.5,8.07715343]
[1740016184888,6.2155,2719.0,2718.5,3.94242]
[1740016185062,0.7941,2718.9,2718.4,3.9426]
[1740016185238,0.7941,2718.9,2718.4,3.6786]
[1740016185438,0.7941,2718.9,2718.4,3.9426]
[1740016185642,0.7941,2718.9,2718.4,0.264]
[1740016185977,0.8009,2718.8,2718.4,0.264]
[1740016187275,0.8009,2718.8,2718.4,3.9426]
[1740016187444,0.8009,2718.8,2718.4,4.79252734]
[1740016187879,0.8009,2718.8,2718.4,1.11392734]
[1740016188037,0.8009,2718.8,2718.5,3.67848]
[1740016188243,6.1909,2718.8,2718.5,3.67848]
[1740016188898,5.39,2718.8,2718.5,4.44398]
[1740016189660,5.39,2718.8,2718.5,3.67848]
[1740016189996,5.39,2718.8,2718.4,0.264]
[1740016190401,5.39,2718.8,2718.4,3.94258]
[1740016190597,5.39,2718.8,2718.4,0.264]
[1740016190790,0.8026,2718.7,2718.4,0.264]
[1740016191900,0.8026,2718.7,2718.3,3.67866]
[1740016192074,5.467887,2718.7,2718.2,0.1494066]
[1740016192279,0.8297,2718.6,2718.2,0.4134066]
[1740016192977,6.2197,2718.6,2718.2,0.4134066]
[1740016193191,3.6785,2718.5,2718.2,0.4134066]
[1740016193370,9.89807,2718.6,2718.2,0.4134066]
[1740016193864,11.3544057,2718.6,2718.2,0.4134066]
[1740016194301,0.8267,2718.5,2718.2,0.1494066]
[1740016196636,6.2167,2718.5,2718.2,0.1494066]
[1740016199942,9.89521,2718.5,2718.2,0.1494066]
[1740016200142,7.6727647,2718.5,2718.2,0.1494066]
[1740016200442,6.2167,2718.5,2718.2,0.1494066]
[1740016200835,9.89528,2718.5,2718.2,0.1494066]
[1740016203357,0.7762,2718.4,2718.2,0.1494066]
[1740016203518,5.39,2718.3,2718.2,0.1494066]
[1740016204134,6.2091,2718.3,2718.2,0.1494066]
[1740016204460,10.876637,2718.3,2718.2,0.1494066]
[1740016206118,7.197877,2718.3,2718.2,0.1494066]
[1740016206471,10.876637,2718.3,2718.2,0.1494066]
[1740016206915,7.197877,2718.3,2718.2,0.1494066]
[1740016208450,6.2091,2718.3,2718.2,0.1494066]
[1740016208672,5.39,2718.3,2718.2,0.1494066]
[1740016212073,5.39,2718.3,2718.2,0.1494066]
[1740016212969,5.39,2718.3,2718.2,0.9269066]
[1740016213273,5.39,2718.3,2718.2,4.6058066]
[1740016213932,5.39,2718.6,2718.3,3.67871]
[1740016214353,5.39,2718.6,2718.2,0.9269066]
[1740016214553,5.39,2718.6,2718.3,3.67869]
[1740016214834,6.1862,2718.9,2718.5,3.67849]
[1740016215052,6.1862,2718.9,2718.4,3.67858]
[1740016215250,6.1862,2718.9,2718.4,3.94258]
[1740016215465,6.1862,2718.9,2718.4,4.88029343]
[1740016215692,6.1862,2718.9,2718.5,3.67845]
[1740016216550,6.1862,2718.9,2718.4,4.88029343]
[1740016216747,6.1862,2718.9,2718.5,0.8044]
[1740016216946,5.39,2718.9,2718.5,0.8044]
[1740016217198,0.7576,2718.8,2718.2,4.6326366]
[1740016217404,4.43578,2718.8,2718.3,0.264]
[1740016217696,0.8094,2718.7,2718.3,0.264]
[1740016218185,4.4877,2718.7,2718.2,0.1494066]
[1740016218732,0.8094,2718.6,2718.2,0.1494066]
[1740016219304,0.7852,2718.4,2718.2,0.1494066]
[1740016219811,5.39,2718.3,2718.2,0.1494066]
[1740016220883,9.83356,2718.3,2718.2,0.1494066]
[1740016221763,13.32323334,2718.3,2718.2,0.1494066]
[1740016227406,6.1548,2718.3,2718.2,0.1494066]
[1740016227974,7.138146,2718.3,2718.2,0.1494066]
[1740016228170,10.816906,2718.3,2718.2,0.1494066]
[1740016228608,6.1548,2718.3,2718.2,0.1494066]
[1740016228986,9.83356,2718.3,2718.2,0.1494066]
[1740016229678,6.1548,2718.3,2718.2,0.1494066]
[1740016232421,6.23711363,2718.3,2718.2,0.1494066]
[1740016235878,5.47231363,2718.3,2718.2,0.1494066]
[1740016239606,5.47231363,2718.3,2718.2,3.8283066]
[1740016239921,5.47231363,2718.3,2718.2,5.33614726]
[1740016241515,5.47231363,2718.3,2718.2,0.1494066]
[1740016241719,6.22471363,2718.3,2718.2,0.1494066]
[1740016242731,9.90347363,2718.3,2718.2,0.1494066]
[1740016243709,6.22471363,2718.3,2718.2,0.1494066]
[1740016245533,5.47231363,2718.3,2718.2,0.1494066]
[1740016246135,5.47231363,2718.3,2718.2,3.8283066]
[1740016246315,5.47231363,2718.3,2718.2,4.65631626]
[1740016246510,5.47231363,2718.3,2718.2,0.1494066]
[1740016247152,5.47231363,2718.3,2718.2,3.8283066]
[1740016248204,5.39,2718.3,2718.2,3.8283066]
[1740016248403,5.39,2718.3,2718.2,4.5886066]
[1740016248716,5.47133724,2718.3,2718.2,4.5886066]
[1740016248912,5.47133724,2718.3,2718.2,5.41585926]
[1740016249441,0.08133724,2718.3,2718.2,5.41585926]
[1740016249849,5.39,2718.8,2718.2,1.73695926]
[1740016250139,5.39,2718.8,2718.5,3.67838]
[1740016250352,5.39,2718.8,2718.3,3.67876]
[1740016251033,5.39,2718.8,2718.4,3.67859]
[1740016251206,5.39,2718.8,2718.5,3.67843]
[1740016251804,5.39,2718.8,2718.4,7.35713]
[1740016252017,5.39,2718.8,2718.4,3.67854]
[1740016252428,5.39,2718.8,2718.3,3.67872]
[1740016252835,5.39,2718.8,2718.5,3.67846]
[1740016253032,5.39,2718.8,2718.6,0.8057]
[1740016254355,5.39,2718.8,2718.6,4.48405]
[1740016254958,5.39,2719.1,2718.9,3.67794]
[1740016255107,5.39,2719.1,2718.9,3.67786]
[1740016256223,5.39,2719.1,2718.9,4.43696]
[1740016256629,5.39,2719.1,2718.9,4.43704]
[1740016256926,5.39,2719.1,2719.0,3.67782]
[1740016258178,5.46740057,2719.1,2719.0,3.67782]
[1740016260577,5.46740057,2719.1,2719.0,4.489307]
[1740016260776,5.39,2719.1,2719.0,4.489307]
[1740016260973,5.46743846,2719.1,2719.0,4.489307]
[1740016261634,5.46743846,2719.1,2719.0,5.255007]
[1740016262472,5.46743846,2719.1,2719.0,1.577187]
[1740016262677,5.46743846,2719.1,2718.7,3.67822]
[1740016263402,5.46743846,2719.1,2718.7,3.67815]
[1740016263606,5.46743846,2719.1,2718.8,3.67807]
[1740016263741,5.46743846,2719.1,2718.6,4.74265]
[1740016263945,5.46743846,2719.1,2718.7,3.67813]
[1740016264447,5.46743846,2719.1,2718.9,3.67791]
[1740016264871,5.46743846,2719.1,2718.9,7.35579]
[1740016265184,5.46743846,2719.1,2718.9,3.67788]
[1740016265487,5.46743846,2719.1,2718.8,3.67808]
[1740016265660,5.46743846,2719.1,2718.9,3.67788]
[1740016266293,5.46743846,2719.1,2718.8,3.67808]
[1740016266469,5.46743846,2719.1,2718.8,7.35608]
[1740016266971,5.46743846,2719.1,2718.8,3.678]
[1740016267279,5.46743846,2719.1,2719.0,4.46582]
[1740016267661,5.39,2719.1,2719.0,4.46582]
[1740016268058,5.46789333,2719.1,2719.0,4.46582]
[1740016270195,0.07789333,2719.1,2719.0,4.46582]
[1740016270502,5.39,2719.6,2719.3,3.67729]
[1740016270793,5.39,2719.6,2719.1,3.67759]
[1740016270960,5.39,2719.6,2719.0,0.788]
[1740016271156,10.055565,2719.6,2718.9,3.67785]
[1740016271361,3.67729,2719.4,2718.7,4.43133]
[1740016271564,0.751,2719.3,2718.7,4.69533]
[1740016271899,0.751,2719.3,2718.7,4.43133]
[1740016272402,0.751,2719.3,2719.0,3.67775]
[1740016273286,0.07820405,2719.2,2719.0,3.67775]
[1740016273597,3.67777,2719.1,2718.5,1.0776]
[1740016273803,9.06777,2719.1,2718.5,1.0776]
[1740016274001,5.46820405,2719.1,2718.5,4.75606]
[1740016274300,5.46820405,2719.1,2718.5,4.49206]
[1740016274521,0.8311,2718.5,2718.2,0.1494066]
[1740016274721,5.39,2718.4,2718.2,0.1494066]
[1740016274901,5.46737784,2718.4,2718.2,0.1494066]
[1740016275094,6.46507162,2718.4,2718.2,0.1494066]
[1740016275298,4.44246,2718.3,2718.2,0.1494066]
[1740016275706,4.51983025,2718.3,2718.2,0.1494066]
[1740016276082,0.84107025,2718.3,2718.2,0.1494066]
[1740016277306,0.07737025,2718.3,2718.2,0.1494066]
[1740016277673,0.07737025,2718.3,2718.2,3.8283066]
[1740016277872,0.07737025,2718.3,2718.2,0.1494066]
[1740016278298,0.07737025,2718.3,2718.2,4.21165026]
[1740016278487,0.07737025,2718.3,2718.2,0.53275026]
[1740016278681,5.39,2718.4,2718.2,0.1494066]
[1740016278914,0.07705179,2718.3,2718.2,0.1494066]
[1740016279112,5.46705179,2718.3,2718.2,0.1494066]
[1740016279680,9.95851179,2718.3,2718.2,0.1494066]
[1740016282322,6.27975179,2718.3,2718.2,0.1494066]
[1740016283140,5.46705179,2718.3,2718.2,0.1494066]
[1740016283321,5.46705179,2718.3,2718.2,3.8283066]
[1740016283687,5.39,2718.8,2718.2,4.6568066]
[1740016283882,5.39,2718.8,2718.7,3.67822]
[1740016284385,5.39,2718.8,2718.5,3.67845]
[1740016284583,5.39,2718.8,2718.5,4.072795]
[1740016285335,5.39,2718.8,2718.7,3.67822]
[1740016285536,5.39,2718.8,2718.7,4.47252]
[1740016286403,5.39,2718.8,2718.5,4.072795]
[1740016286817,5.39,2718.8,2718.4,3.67863]
[1740016287219,5.39,2718.8,2718.5,3.67846]
[1740016288088,5.39,2719.1,2718.5,3.67846]
[1740016288307,0.07405239,2718.7,2718.5,3.67846]
[1740016288487,5.39,2719.1,2718.5,3.67846]
[1740016288806,5.39,2719.1,2718.2,0.1494066]
[1740016288807,0.8166,2718.6,2718.2,3.8282666]
[1740016289009,0.07405239,2718.5,2718.3,3.67875]
[1740016289210,5.39,2718.4,2718.3,3.67875]
[1740016289520,5.46406755,2718.4,2718.2,3.8282866]
[1740016289822,5.46406755,2718.4,2718.2,0.1494066]
[1740016290323,6.09213431,2718.4,2718.2,0.1494066]
[1740016291622,5.46406755,2718.4,2718.2,0.1494066]
[1740016292213,5.46406755,2718.4,2718.2,3.8283066]
[1740016292523,5.46406755,2718.4,2718.2,0.1494066]
[1740016293118,5.46406755,2718.4,2718.3,3.67876]
[1740016293306,5.46406755,2718.4,2718.2,3.8283066]
[1740016293688,5.46406755,2718.4,2718.2,7.5071066]
[1740016293912,5.46406755,2718.4,2718.2,3.8282066]
[1740016295041,5.46406755,2718.4,2718.2,0.1494066]
[1740016295632,5.46406755,2718.4,2718.2,3.8283066]
[1740016296256,5.46406755,2718.4,2718.2,3.8281966]
[1740016296459,5.46406755,2718.4,2718.3,3.67876]
[1740016298943,5.46406755,2718.4,2718.3,4.51246666]
[1740016299330,5.39,2718.4,2718.3,4.51246666]
[1740016299858,5.46325479,2718.4,2718.3,4.51246666]
[1740016300042,0.07325479,2718.4,2718.3,4.51246666]
[1740016300245,5.39,2718.9,2718.4,3.67861]
[1740016300562,0.07270099,2718.8,2718.2,4.6533066]
[1740016300761,0.8193,2718.7,2718.3,3.67874]
[1740016300944,0.07270099,2718.8,2718.4,3.67862]
[1740016301114,0.07211885,2718.6,2718.5,3.67847]
[1740016301315,5.39,2718.9,2718.4,3.67862]
[1740016301551,0.62093,2718.8,2718.4,3.67862]
[1740016301752,0.07211885,2718.7,2718.4,7.35717]
[1740016301953,5.39,2718.9,2718.4,7.35717]
[1740016302155,0.07211885,2718.8,2718.5,3.67841]
[1740016303358,0.07211885,2718.8,2718.4,3.67855]
[1740016303559,1.06804973,2718.8,2718.4,3.67855]
[1740016304385,1.06804973,2718.8,2718.3,7.35744]
[1740016304586,1.06804973,2718.8,2718.4,3.67863]
[1740016305690,0.07211885,2718.8,2718.5,3.67848]
[1740016305892,5.46211885,2718.8,2718.5,3.67848]
[1740016306290,5.46211885,2718.8,2718.6,3.67834]
[1740016306491,5.46211885,2718.8,2718.5,3.67839]
[1740016307013,5.46211885,2718.8,2718.6,3.67835]
[1740016307311,5.46211885,2718.8,2718.5,3.67839]
[1740016307491,5.46211885,2718.8,2718.7,3.67822]
[1740016308273,5.46211885,2718.8,2718.7,4.494657]
[1740016308475,5.39,2718.8,2718.7,4.494657]
[1740016309016,5.46135219,2718.8,2718.7,4.494657]
[1740016313292,5.46135219,2718.8,2718.6,4.75007]
[1740016313492,5.46135219,2718.8,2718.5,3.94246]
[1740016313695,5.46135219,2718.8,2718.4,0.264]
[1740016314018,0.7993,2718.7,2718.4,0.264]
[1740016314203,0.0718374,2718.6,2718.4,0.264]
[1740016314995,0.0718374,2718.6,2718.2,4.0922166]
[1740016315214,0.0718374,2718.6,2718.2,7.7710466]
[1740016315419,0.0718374,2718.6,2718.2,4.0922166]
[1740016315597,0.0718374,2718.6,2718.2,0.4134066]
[1740016315794,0.0718374,2718.6,2718.2,4.0922866]
[1740016316195,0.0718374,2718.6,2718.3,3.67871]
[1740016316391,0.0718374,2718.6,2718.2,4.0922866]
[1740016316632,0.69795114,2718.6,2718.2,3.8282866]
[1740016317137,0.0718374,2718.6,2718.2,0.1494066]
[1740016317365,0.0718374,2718.6,2718.3,3.67875]
[1740016317780,5.39,2718.5,2718.3,3.67875]
[1740016318081,0.07167062,2718.4,2718.3,3.67875]
[1740016319447,0.07167062,2718.4,2718.2,0.1494066]
[1740016320035,0.07167062,2718.4,2718.2,3.8282966]
[1740016320481,0.07167062,2718.4,2718.2,0.1494066]
[1740016321291,0.07167062,2718.4,2718.2,3.8282866]
[1740016321649,0.07167062,2718.4,2718.3,3.67876]
[1740016321850,0.07167062,2718.4,2718.2,7.5070966]
[1740016322281,0.07167062,2718.4,2718.2,3.8282166]
[1740016322477,0.07167062,2718.4,2718.2,0.1494066]
[1740016323667,5.46167062,2718.4,2718.2,0.1494066]
[1740016324051,0.7892,2718.3,2718.2,0.1494066]
[1740016324257,0.86051426,2718.3,2718.2,0.1494066]
[1740016324598,6.25051426,2718.3,2718.2,0.1494066]
[1740016326795,5.46131426,2718.3,2718.2,3.8283066]
[1740016326953,5.46131426,2718.3,2718.2,0.1494066]
[1740016327795,6.83891569,2718.3,2718.2,0.1494066]
[1740016327995,5.46131426,2718.3,2718.2,0.1494066]
[1740016330547,9.91977426,2718.3,2718.2,0.1494066]
[1740016334133,9.91977426,2718.3,2718.2,0.1344066]
[1740016346952,6.24101426,2718.3,2718.2,0.1344066]
[1740016347250,5.46131426,2718.3,2718.2,0.1344066]
[1740016348134,0.07131426,2718.3,2718.2,5.00564926]
[1740016348501,5.39,2718.7,2718.2,4.19514926]
[1740016348701,0.06682567,2718.6,2718.4,3.67854]
[1740016349032,0.06682567,2718.6,2718.5,4.48899]
[1740016349202,0.06682567,2718.6,2718.5,4.964289]
[1740016349403,5.39,2718.7,2718.5,1.285799]
[1740016349604,0.06682567,2718.6,2718.5,1.285799]
[1740016350004,0.06682567,2718.6,2718.5,4.964289]
[1740016350411,0.06682567,2718.6,2718.5,1.285799]
[1740016351239,0.06682567,2718.6,2718.5,4.964289]
[1740016352341,0.06682567,2718.6,2718.5,1.285799]
[1740016352541,0.06682567,2718.6,2718.5,0.8105]
[1740016356620,0.06682567,2718.6,2718.2,0.3984066]
[1740016357328,0.06682567,2718.6,2718.3,0.73789126]
[1740016358784,0.06682567,2718.6,2718.2,0.3984066]
[1740016359104,0.06682567,2718.6,2718.2,4.0772166]
[1740016359450,5.39,2718.5,2718.2,4.0772166]
[1740016359654,0.06712938,2718.4,2718.2,4.0772166]
[1740016360281,0.06712938,2718.4,2718.2,1.14035099]
[1740016360688,0.06712938,2718.4,2718.2,4.81922099]
[1740016361881,0.06712938,2718.4,2718.3,4.48536]
[1740016363885,0.06712938,2718.4,2718.3,3.67876]
[1740016364047,0.06712938,2718.4,2718.3,4.46096]
[1740016364379,5.39,2718.5,2718.4,3.67863]
[1740016364757,5.45731165,2718.5,2718.4,3.67863]
[1740016365284,0.06731165,2718.5,2718.4,3.67863]
[1740016365469,5.39,2718.9,2718.4,3.67863]
[1740016365673,0.06731165,2718.8,2718.4,3.67863]
[1740016371722,0.06731165,2718.8,2718.5,3.67847]
[1740016371875,0.06731165,2718.8,2718.5,3.67842]
[1740016373124,0.06731165,2718.8,2718.3,4.46086]
[1740016373433,3.74542165,2718.8,2718.3,1.0462]
[1740016374017,0.7651,2718.7,2718.2,1.14035099]
[1740016374319,0.06747105,2718.6,2718.2,4.81923099]
[1740016375433,0.06747105,2718.6,2718.2,4.55523099]
[1740016375732,0.06747105,2718.6,2718.2,4.81923099]
[1740016376270,0.06747105,2718.6,2718.2,8.49805099]
[1740016376675,0.06747105,2718.6,2718.2,4.81917099]
[1740016377013,0.06747105,2718.6,2718.2,8.49798099]
[1740016377221,5.45747105,2718.6,2718.3,3.67873]
[1740016379918,5.45747105,2718.6,2718.2,4.81916099]
[1740016380127,5.45747105,2718.6,2718.4,3.6786]
[1740016380735,5.45747105,2718.6,2718.3,3.67875]
[1740016381424,5.45747105,2718.6,2718.5,4.51019]
[1740016382910,5.45747105,2718.6,2718.5,0.8317]
[1740016383938,5.45747105,2718.6,2718.5,4.51019]
[1740016384099,5.45747105,2718.6,2718.5,0.8317]
[1740016385438,5.45747105,2718.6,2718.4,3.6785]
[1740016386439,5.45747105,2718.6,2718.3,0.8207]
[1740016386642,5.45747105,2718.6,2718.3,4.49937]
[1740016386944,0.06740272,2718.5,2718.3,4.49937]
[1740016387242,0.06740272,2718.5,2718.2,4.81917099]
[1740016387533,0.06740272,2718.5,2718.2,8.49799099]
[1740016387690,0.06740272,2718.5,2718.2,4.81917099]
[1740016388111,0.06740272,2718.5,2718.3,3.67874]
[1740016389156,5.45740272,2718.5,2718.3,3.67874]
[1740016389826,5.45740272,2718.5,2718.2,1.14035099]
[1740016390256,6.08338299,2718.5,2718.2,0.87635099]
[1740016393213,6.08338299,2718.5,2718.2,0.1344066]
[1740016395263,0.8021,2718.4,2718.2,0.1344066]
[1740016395658,0.06717497,2718.3,2718.2,0.1344066]
[1740016396372,0.75570049,2718.3,2718.2,0.1344066]
[1740016396675,0.06717497,2718.3,2718.2,0.1344066]
[1740016397768,9.94503497,2718.3,2718.2,0.1344066]
[1740016398673,11.63717061,2718.3,2718.2,0.1344066]
[1740016400772,9.94503497,2718.3,2718.2,0.1344066]
[1740016409346,6.26627497,2718.3,2718.2,0.1344066]
[1740016409543,7.86043906,2718.3,2718.2,0.1344066]
[1740016409897,5.45717497,2718.3,2718.2,3.8133066]
[1740016410048,5.45717497,2718.3,2718.2,4.5641066]
[1740016410490,0.06717497,2718.3,2718.2,4.5641066]
[1740016410841,5.39,2718.8,2718.6,3.67827]
[1740016411151,0.05629537,2718.7,2718.6,4.43967]
[1740016411346,5.39,2718.8,2718.7,3.67822]
[1740016411551,5.44651559,2718.8,2718.7,3.67822]
[1740016413289,5.44651559,2718.8,2718.6,0.7614]
[1740016413496,5.44651559,2718.8,2718.7,3.67822]
[1740016415063,5.44651559,2718.8,2718.7,4.56370312]
[1740016415753,0.05651559,2718.8,2718.7,4.56370312]
[1740016416085,5.39,2719.2,2718.7,8.24181312]
[1740016416401,5.39,2719.3,2718.8,3.67801]
[1740016416567,0.05732794,2719.1,2718.8,3.67801]
[1740016416781,5.39,2719.3,2718.8,3.67801]
[1740016417078,0.05732794,2719.0,2718.9,3.67795]
[1740016417281,5.39,2719.3,2718.9,3.67795]
[1740016417464,0.05732794,2719.0,2718.9,4.49795]
[1740016417666,5.39,2719.3,2718.9,4.49795]
[1740016417895,0.05732794,2719.0,2718.9,4.49795]
[1740016418050,5.39,2719.3,2718.9,4.49795]
[1740016418252,0.05732794,2719.0,2718.9,4.49795]
[1740016418888,5.39,2719.3,2718.9,4.49795]
[1740016419093,0.05732794,2719.0,2718.9,4.49795]
[1740016419252,6.372116,2719.3,2718.6,0.73683123]
[1740016419454,0.05732794,2719.0,2718.5,4.70784]
[1740016419800,0.05744938,2718.9,2718.5,3.67844]
[1740016420251,4.42878,2719.2,2718.6,3.67831]
[1740016420450,0.05744938,2718.8,2718.6,3.67831]
[1740016420650,4.42878,2719.2,2718.6,3.67831]
[1740016421155,0.05744938,2719.1,2718.6,3.67831]
[1740016421565,0.05744938,2719.1,2718.5,4.41767135]
[1740016421767,5.39,2719.0,2718.5,4.41764135]
[1740016422094,5.39,2719.0,2718.9,3.67795]
[1740016423399,0.05729758,2719.0,2718.9,3.67795]
[1740016423569,6.1836,2719.4,2718.9,3.67795]
[1740016423769,0.05729758,2719.3,2719.0,3.67772]
[1740016424091,0.05729758,2719.3,2718.9,3.67795]
[1740016425895,0.05729758,2719.3,2718.9,7.35582]
[1740016426100,0.05729758,2719.3,2719.2,4.42845]
[1740016426395,0.05729758,2719.3,2718.9,4.30703142]
[1740016426396,0.05729758,2719.3,2719.0,3.67773]
[1740016426573,0.05729758,2719.3,2719.0,4.42863]
[1740016426925,0.05729758,2719.3,2719.2,3.67755]
[1740016428187,0.05729758,2719.3,2719.1,3.67759]
[1740016428384,0.05729758,2719.3,2719.2,3.67755]
[1740016429256,0.05729758,2719.3,2719.2,4.56288813]
[1740016430303,0.05729758,2719.3,2719.2,5.31608813]
[1740016431206,0.05729758,2719.3,2719.2,4.43075]
[1740016435181,0.05729758,2719.3,2719.2,4.69475]
[1740016436990,5.39,2719.8,2719.4,3.67718]
[1740016437341,5.39,2719.8,2719.4,7.35437]
[1740016438057,5.39,2719.8,2719.4,3.67718]
[1740016438254,0.05708685,2719.7,2719.4,3.67718]
[1740016438604,5.39,2719.8,2719.4,7.35437]
[1740016438937,0.05708685,2719.6,2719.4,3.67718]
[1740016439128,5.39,2719.8,2719.4,7.35437]
[1740016439443,0.05708685,2719.5,2719.4,3.67718]
[1740016439616,5.39,2719.8,2719.4,3.67718]
[1740016439816,0.05665915,2719.5,2719.4,3.67718]
[1740016440017,5.39,2719.8,2719.4,3.67718]
[1740016440228,0.05665915,2719.5,2719.4,3.67718]
[1740016440407,5.39,2719.8,2719.4,4.514358]
[1740016440607,0.05669708,2719.5,2719.4,3.67718]
[1740016441032,5.39,2719.8,2719.4,3.67718]
[1740016441674,0.05724346,2719.7,2719.5,3.67713]
[1740016442035,5.39,2719.8,2719.6,4.43471]
[1740016442227,5.39,2719.8,2719.7,4.120341]
[1740016442671,5.39,2719.8,2719.7,3.67687]
[1740016443374,5.44288524,2719.8,2719.7,3.67687]
[1740016444498,5.44288524,2719.8,2719.6,0.7577]
[1740016444679,5.44288524,2719.8,2719.6,3.6769]
[1740016445073,5.44288524,2719.8,2719.7,3.67687]
[1740016447252,5.44288524,2719.8,2719.7,4.59380134]
[1740016448598,0.05288524,2719.8,2719.7,4.59380134]
[1740016448762,0.05288524,2719.8,2719.7,5.37320134]
[1740016448967,5.39,2720.3,2720.1,3.67632]
[1740016449172,5.39,2720.4,2720.1,3.67632]
[1740016449378,5.39,2720.4,2719.8,0.7794]
[1740016449544,0.7637,2720.2,2719.7,3.67675]
[1740016449890,0.7637,2720.2,2719.6,3.67698]
[1740016450408,0.7637,2720.2,2719.5,3.67704]
[1740016450547,5.39,2720.1,2719.6,3.67695]
[1740016450749,0.7637,2720.0,2719.5,7.35409]
[1740016451049,5.39,2720.1,2719.4,0.264]
[1740016451050,5.39,2720.1,2719.9,3.67652]
[1740016451253,5.39,2720.1,2719.9,3.67648]
[1740016451868,5.39,2720.1,2720.0,3.67647]
[1740016452386,5.39,2720.1,2720.0,4.47317]
[1740016453571,0.7944,2721.1,2720.2,0.7686]
[1740016453776,6.1844,2721.1,2720.6,0.7686]
[1740016453972,0.0496628,2721.0,2720.6,3.67565]
[1740016454179,0.0496628,2721.0,2720.4,4.44446]
[1740016454360,0.0496628,2721.0,2720.4,8.12029]
[1740016454691,0.8264,2720.9,2720.4,3.67583]
[1740016455365,0.0496628,2720.8,2720.5,3.67578]
[1740016456095,0.0496628,2720.8,2720.7,0.8193]
[1740016456392,5.39,2721.1,2720.7,0.8193]
[1740016456598,5.39,2721.1,2721.0,3.67511]
[1740016456802,0.0496628,2721.1,2720.8,3.94025]
[1740016456959,0.0496628,2721.1,2720.8,0.265]
[1740016457303,0.05003462,2721.0,2720.8,0.265]
[1740016457469,5.39,2721.3,2720.8,0.265]
[1740016457795,6.375865,2721.3,2720.8,0.265]
[1740016457996,0.05018637,2721.2,2720.8,0.265]
[1740016458367,4.44665,2721.2,2720.5,0.765]
[1740016458698,0.7718,2721.0,2720.5,0.265]
[1740016459075,0.05020912,2720.9,2720.5,0.265]
[1740016460498,9.11554912,2720.9,2720.5,0.265]
[1740016460702,9.11554912,2720.9,2720.3,0.265]
[1740016460910,9.11554912,2720.9,2720.2,3.94116]
[1740016461205,0.8287,2720.8,2720.2,3.94116]
[1740016461572,0.0500498,2720.7,2720.2,3.94116]
[1740016461902,0.0500498,2720.7,2720.3,3.67606]
[1740016462201,0.8287,2720.8,2720.2,8.33557901]
[1740016462398,0.8287,2720.8,2720.2,4.65941901]
[1740016462702,0.0500498,2720.7,2720.3,3.67604]
[1740016463005,0.8287,2720.8,2720.3,3.67604]
[1740016463498,0.0500498,2720.7,2720.2,0.98334901]
[1740016463701,0.0500498,2720.7,2720.2,4.65945901]
[1740016464006,0.0500498,2720.7,2720.3,3.67605]
[1740016464213,0.0500498,2720.7,2720.4,3.67591]
[1740016464860,0.8287,2720.8,2720.4,3.67591]
[1740016465173,5.39,2720.9,2720.5,0.8019]
[1740016465507,0.05064939,2720.8,2720.5,0.8019]
[1740016465660,0.05064939,2720.8,2720.4,3.67591]
[1740016466406,5.39,2720.7,2720.5,3.67578]
[1740016466702,0.05063421,2720.6,2720.5,3.67578]
[1740016467771,0.05063421,2720.6,2720.5,4.48824]
[1740016468119,0.05063421,2720.6,2720.5,5.29694]
[1740016468319,5.39,2720.7,2720.6,3.67565]
[1740016471658,0.8086,2721.3,2721.0,3.675]
[1740016471659,6.1986,2721.3,2721.0,3.675]
[1740016472870,6.1986,2721.3,2720.9,0.7597]
[1740016473376,6.1986,2721.3,2721.0,3.67502]
[1740016474073,6.1986,2721.3,2721.1,3.67496]
[1740016474273,6.1986,2721.3,2721.0,3.67502]
[1740016474766,5.39,2721.3,2721.1,3.67487]
[1740016475065,5.39,2721.3,2721.2,3.67484]
[1740016475219,5.39,2721.6,2721.2,3.67484]
[1740016475831,5.39,2721.6,2721.2,4.436282]
[1740016476058,5.39,2721.6,2721.2,8.111012]
[1740016476278,5.39,2721.6,2721.3,3.67467]
[1740016476423,5.39,2721.6,2721.5,3.67444]
[1740016477073,5.39,2721.6,2721.3,4.47037]
[1740016477074,5.39,2721.6,2721.4,3.67457]
[1740016477468,0.05053309,2721.5,2721.4,3.67457]
[1740016477966,0.05053309,2721.5,2721.4,4.5652122]
[1740016478395,5.39,2722.0,2721.7,3.67412]
[1740016480757,5.39,2722.0,2721.6,0.7961]
[1740016481296,5.39,2722.0,2721.6,4.47039]
[1740016482813,5.39,2722.0,2721.7,3.67415]
[1740016483313,0.05115491,2721.9,2721.7,3.67415]
[1740016484515,0.05115491,2721.9,2721.6,0.7961]
[1740016484804,0.05115491,2721.9,2721.6,4.47039]
[1740016488116,0.05115491,2721.9,2721.7,3.67415]